fUSD/lending_fUSD_20240210
["ID","MTS","AMOUNT","RATE_DAILY","PERIOD"]
[313717365,1707605003060,-686.19364347,0.00022369,2]
[313717366,1707605024106,-935.0,0.00022175,2]
[313717367,1707605036852,-0.74665762,0.00022175,2]
[313717368,1707605036873,-25.33635653,0.00022369,2]
[313717369,1707605036894,-731.91698585,0.00022369,2]
[313717370,1707605056471,-1.63301415,0.00022369,2]
[313717371,1707605056492,-150.0,0.00022499,2]
[313717372,1707605056511,-150.0,0.00022499,2]
[313717373,1707605056530,-998.36698585,0.000225,2]
[313717374,1707605079544,512.07,0.00021932,2]
[313717375,1707605111216,-1.63301415,0.000225,2]
[313717376,1707605111237,-189.36698585,0.00022535,2]
[313717377,1707605150445,250.0,0.00021935,2]
[313717392,1707605223154,200.0,0.00021943,2]
[313717393,1707605235615,122.37,0.00022,2]
[313717394,1707605235634,27.63,0.00022,2]
[313717400,1707605355875,3972.37,0.00021968,2]
[313717401,1707605355894,4000.0,0.00021968,2]
[313717402,1707605355913,4000.0,0.00021968,2]
[313717403,1707605355932,1000.0,0.00021968,2]
[313717404,1707605355952,1000.0,0.00021968,2]
[313717405,1707605355975,6191.76,0.00021968,2]
[313717412,1707605391195,271.03,0.00020028,2]
[313717431,1707605432533,-271.03,0.00022292,2]
[313717433,1707605432543,-150.0,0.00022743,2]
[313717436,1707605432553,-150.0,0.00022745,2]
[313717437,1707605432562,-150.0,0.00022757,2]
[313717439,1707605432571,-150.0,0.00022761,2]
[313717441,1707605432580,-150.0,0.00022774,2]
[313717443,1707605432589,-150.0,0.00022777,2]
[313717445,1707605432598,-150.0,0.00022783,2]
[313717448,1707605432607,-150.0,0.00022798,2]
[313717450,1707605432616,-157.35817088,0.00022804,2]
[313717452,1707605432626,-290.97882579,0.00022823,2]
[313717454,1707605432635,-150.0,0.00022836,2]
[313717455,1707605432648,-150.0,0.00022875,2]
[313717457,1707605432657,-9.36408251,0.00022879,2]
[313717460,1707605432673,-154.00780764,0.00022879,2]
[313717462,1707605432683,-150.0,0.00022888,2]
[313717464,1707605432692,-161.28416448,0.000229,2]
[313717466,1707605432701,-150.0,0.00022904,2]
[313717468,1707605432710,-150.0,0.00022921,2]
[313717470,1707605432722,-150.0,0.00022924,2]
[313717471,1707605432731,-212.08477728,0.00022924,2]
[313717474,1707605432747,-227.32036337,0.00022924,2]
[313717476,1707605432756,-150.0,0.0002293,2]
[313717477,1707605432766,-150.0,0.00022934,2]
[313717478,1707605432774,-150.0,0.00022958,2]
[313717479,1707605432783,-150.0,0.00022963,2]
[313717480,1707605432792,-150.0,0.00022968,2]
[313717481,1707605432801,-150.0,0.00022971,2]
[313717482,1707605432810,-300.0,0.00022971,2]
[313717483,1707605432820,-150.0,0.00022971,2]
[313717484,1707605432829,-150.0,0.00022971,2]
[313717485,1707605432839,-150.0,0.0002298,2]
[313717486,1707605432850,-150.0,0.00022994,2]
[313717487,1707605432861,-661.65906419,0.00022997,2]
[313717488,1707605432870,-1469.71068993,0.00022997,2]
[313717489,1707605432879,-441.90988251,0.00022997,2]
[313717490,1707605432891,-120.08247226,0.00022997,2]
[313717491,1707605432901,-155.92647831,0.00022997,2]
[313717492,1707605432911,-273.99104943,0.00022997,2]
[313717493,1707605432931,-24.59344185,0.00022997,2]
[313717494,1707605432941,-263.71092641,0.00022997,2]
[313717495,1707605432950,-2468.13258941,0.00022997,2]
[313717496,1707605432960,-162.97983708,0.00022998,2]
[313717497,1707605432968,-2399.61097656,0.00022998,2]
[313717498,1707605432981,-514.5915964,0.00022998,2]
[313717499,1707605432990,-249.89532111,0.00022998,2]
[313717500,1707605432999,-155.0,0.00022998,2]
[313717501,1707605433009,-525.87539192,0.00022998,2]
[313717502,1707605433018,-341.72275727,0.00022998,2]
[313717503,1707605433034,-2501.085639,0.00022998,2]
[313717504,1707605433043,-208.7006556,0.00022998,2]
[313717505,1707605433052,-5721.00806481,0.00022998,2]
[313717506,1707605433065,-650.6925835,0.00022998,2]
[313717507,1707605433076,-379.0,0.00022998,2]
[313717508,1707605433087,-501.636,0.00022998,2]
[313717509,1707605439694,-496.97381975,0.00022998,2]
[313717510,1707605439750,-455.86340802,0.00022998,2]
[313717511,1707605439762,-2054.17244317,0.00022998,2]
[313717512,1707605439861,-13325.15368074,0.00022998,2]
[313717513,1707605439871,-265.80071031,0.00022998,2]
[313717514,1707605439880,-342.38288872,0.00022999,2]
[313717515,1707605439889,-154209.43150467,0.00022999,2]
[313717516,1707605439901,-107397.25198056,0.00022999,2]
[313717517,1707605439912,-43922.64075346,0.00022999,2]
[313717518,1707605439923,-437.70943335,0.00022999,2]
[313717519,1707605439945,-1741.31701954,0.00022999,2]
[313717520,1707605439956,-1376.22010586,0.00022999,2]
[313717521,1707605439968,-645.88539279,0.00022999,2]
[313717522,1707605439981,-125881.84416812,0.00022999,2]
[313717523,1707605439990,-150.0,0.00022999,2]
[313717524,1707605439999,-150.0,0.00022999,2]
[313717525,1707605440009,-150.0,0.00022999,2]
[313717526,1707605440020,-150.0,0.00022999,2]
[313717527,1707605440030,-469209.0952577,0.00023,2]
[313717528,1707605440040,-331.1596781,0.00023,3]
[313717530,1707605440049,-1364237.68819548,0.00023,2]
[313717533,1707605440065,-1994.52723213,0.00023,2]
[313717543,1707605441819,-1064.8,0.00023,2]
[313717544,1707605441857,-966.33631226,0.00023,2]
[313717545,1707605441868,-2720.90578591,0.00023,2]
[313717565,1707605443340,-1713448.66430972,0.00023,2]
[313717566,1707605443352,-14091.23800266,0.00023,2]
[313717567,1707605443376,-1979.969724,0.00023,2]
[313717568,1707605443387,-1250.66260283,0.00023,2]
[313717569,1707605443407,-1713.92704846,0.00023,2]
[313717570,1707605443419,-2990.58479792,0.00023,2]
[313717571,1707605443439,-496.6914014,0.00023,2]
[313717572,1707605443450,-342.3712349,0.00023,2]
[313717577,1707605446133,-1533.95467315,0.00022899,2]
[313717578,1707605446189,-1006.8,0.00022899,2]
[313717579,1707605446249,-2053.91412685,0.00022899,2]
[313717580,1707605446258,-14150.34411199,0.00023,2]
[313717581,1707605446358,-353.14452739,0.00023,2]
[313717582,1707605446370,-478.64103751,0.00023,2]
[313717583,1707605446471,-9229.66184857,0.00023,2]
[313717584,1707605446495,-9582.91818613,0.00023,2]
[313717585,1707605446506,-868.35847899,0.00023,2]
[313717587,1707605453768,156.8303386,0.00020028,2]
[313717588,1707605454404,155.0,0.00021849,2]
[313717589,1707605454604,1123.92206291,0.00020028,2]
[313717590,1707605455558,871.81571903,0.00020028,2]
[313717591,1707605456117,948.45035289,0.00020028,2]
[313717592,1707605461418,2970.33881677,0.00020699,5]
[313717593,1707605464850,282.56756662,0.00020028,2]
[313717594,1707605465438,747.09361661,0.00020028,2]
[313717595,1707605465459,113.26612247,0.00020028,2]
[313717596,1707605468053,1027.80914658,0.00020028,2]
[313717597,1707605468322,362.79646156,0.00020028,2]
[313717598,1707605476398,166.08656206,0.00021847,2]
[313717599,1707605480334,355.77051824,0.00020028,2]
[313717600,1707605505090,150.0,0.00022,2]
[313717601,1707605520846,979.62493865,0.000155,2]
[313717602,1707605525221,300.0,0.0002,2]
[313717603,1707605558779,200.0,0.00021841,2]
[313717604,1707605560334,188.28,0.00021841,2]
[313717605,1707605623158,156.36625044,0.00021828,2]
[313717606,1707605623180,93.63374956,0.00021828,2]
[313717607,1707605643939,166.71,0.00021821,2]
[313717608,1707605648023,2300.90603234,0.0002,2]
[313717611,1707605657843,187.48,0.00021829,2]
[313717613,1707605666771,720.33,0.0002181,2]
[313717614,1707605690260,165.55,0.00017405,2]
[313717615,1707605760574,365.3902181,0.00021756,2]
[313717616,1707605760600,474.6097819,0.00021756,2]
[313717617,1707605805473,197.76,0.00021764,2]
[313717618,1707605838228,2000.0,0.00021803,2]
[313717619,1707605840055,156.21,0.00021966,2]
[313717621,1707605846977,150.0,0.00021694,2]
[313717622,1707605863311,428.63,0.00021688,2]
[313717623,1707605912025,382.79,0.00021688,2]
[313717624,1707605945869,210.0002181,0.00019756,2]
[313717625,1707605945890,261.8397819,0.00019756,2]
[313717626,1707605960800,250.0,0.00021918,2]
[313717627,1707605982053,488.1602181,0.00021644,2]
[313717628,1707605982073,23411.8397819,0.00021644,2]
[313717629,1707606014667,234.39699553,0.0002201,2]
[313717630,1707606017728,212.78705523,0.0002201,2]
[313717631,1707606017754,1066.04559895,0.0002201,2]
[313717632,1707606025686,216.14687096,0.0002201,2]
[313717633,1707606027364,155.0,0.0002201,2]
[313717634,1707606028892,1046.76795033,0.0002201,2]
[313717635,1707606030064,497.72857645,0.0002201,2]
[313717636,1707606031717,200.0,0.00021657,2]
[313717637,1707606038820,339.32040267,0.0002201,2]
[313717638,1707606048809,161.28536214,0.0002201,2]
[313717639,1707606049236,216.59900075,0.0002201,2]
[313717640,1707606052602,5055.29818565,0.0002201,2]
[313717641,1707606052679,266.77665922,0.0002201,2]
[313717642,1707606061923,163.02538152,0.0002201,2]
[313717643,1707606066478,272.23636461,0.0002201,2]
[313717644,1707606110871,250.0,0.00021714,2]
[313717645,1707606116865,968.14425979,0.0002201,2]
[313717646,1707606127262,600.27,0.00021714,2]
[313717647,1707606132691,165.55,0.00017371,2]
[313717648,1707606134980,272.23636461,0.0002201,2]
[313717649,1707606275011,-272.23636461,0.00022016,2]
[313717650,1707606275032,-197.92021074,0.00022017,2]
[313717651,1707606275053,-497.72857645,0.00022017,2]
[313717652,1707606275075,-264.72719193,0.00022017,2]
[313717653,1707606287873,181.65168037,0.00021924,2]
[313717654,1707606292844,181.65168031,0.00021975,2]
[313717655,1707606333194,156.21,0.00021889,2]
[313717656,1707606333418,156.21,0.00021956,2]
[313717657,1707606350564,272.23636461,0.00022019,2]
[313717658,1707606359509,497.72857645,0.00022019,2]
[313717670,1707606396451,1000.0,0.00021651,2]
[313717671,1707606403936,448.24,0.00019744,2]
[313717672,1707606404165,448.24,0.00022007,2]
[313717694,1707606436001,497.72857645,0.0002202,2]
[313717695,1707606443776,158.8089,0.00021923,2]
[313717701,1707606475572,9552.39,0.00021626,2]
[313717707,1707606565043,250.0,0.00021626,2]
[313717711,1707606580298,548.96,0.00021644,2]
[313717717,1707606632343,-272.23636461,0.00022021,2]
[313717718,1707606632354,-150.0,0.00022022,2]
[313717719,1707606632364,-150.0,0.00022022,2]
[313717720,1707606632373,-156.21,0.00022023,2]
[313717721,1707606632383,-481.10712534,0.00022023,2]
[313717722,1707606632405,-2013.79999743,0.00022023,2]
[313717723,1707606632460,-499.6034895,0.00022023,2]
[313717724,1707606632571,-526.40835608,0.00022023,2]
[313717725,1707606632585,-292.16600001,0.00022023,2]
[313717726,1707606632597,-1314.39513694,0.00022023,2]
[313717727,1707606632628,-598.64497546,0.00022023,2]
[313717746,1707606639729,-537.465,0.00022023,2]
[313717774,1707606640197,-5091.95006226,0.00022023,2]
[313717778,1707606640209,-7734.85889715,0.00022023,2]
[313717780,1707606640218,-3252.89072707,0.00022024,4]
[313717783,1707606640227,-181.65168031,0.00022027,2]
[313717785,1707606640237,-181.65168031,0.00022078,2]
[313717786,1707606640247,-156.21,0.0002209,2]
[313717787,1707606640256,-300.0,0.000221,2]
[313717788,1707606640265,-181.65168031,0.00022129,2]
[313717789,1707606640274,-156.21,0.00022157,2]
[313717790,1707606640283,-181.65168031,0.00022181,2]
[313717791,1707606640292,-165.30463324,0.000222,2]
[313717792,1707606640301,-156.21,0.00022224,2]
[313717793,1707606640310,-181.65168031,0.00022232,2]
[313717794,1707606640319,-121.05734099,0.00022263,2]
[313717795,1707606640344,-46.01265901,0.00022263,2]
[313717796,1707606640353,-181.65168031,0.00022284,2]
[313717797,1707606640362,-156.21,0.00022291,2]
[313717798,1707606640371,-400.0,0.000223,8]
[313717799,1707606640380,-181.65168031,0.00022335,2]
[313717800,1707606640389,-733.24,0.00022341,2]
[313717801,1707606640398,-156.21,0.00022358,2]
[313717802,1707606640407,-181.65168031,0.00022386,2]
[313717803,1707606640416,-188.3521942,0.000224,8]
[313717804,1707606640439,-611.6478058,0.000224,8]
[313717805,1707606640448,-156.21,0.00022425,2]
[313717806,1707606640457,-32.1421942,0.00022438,2]
[313717828,1707606641034,-149.50948611,0.00022438,2]
[313717829,1707606641043,-181.65168031,0.00022489,2]
[313717830,1707606641052,-156.21,0.00022492,2]
[313717831,1707606641062,-1000.0,0.000225,2]
[313717832,1707606641072,-1200.0,0.000225,8]
[313717833,1707606641081,-181.65168031,0.0002254,2]
[313717834,1707606641090,-156.21,0.00022559,2]
[313717835,1707606641099,-181.65168031,0.00022592,2]
[313717836,1707606641108,-1600.0,0.000226,8]
[313717837,1707606641118,-156.21,0.00022627,2]
[313717838,1707606641127,-181.65168031,0.00022643,2]
[313717839,1707606641136,-156.21,0.00022694,2]
[313717840,1707606641147,-181.65168031,0.00022695,2]
[313717841,1707606641156,-2000.0,0.000227,8]
[313717842,1707606641165,-181.65168031,0.00022746,2]
[313717843,1707606641174,-156.21,0.00022761,2]
[313717844,1707606641183,-282.53144061,0.00022768,2]
[313717845,1707606641193,-224.06890769,0.00022769,4]
[313717846,1707606641203,-497.03445989,0.00022769,2]
[313717847,1707606641212,-181.65168031,0.00022797,2]
[313717848,1707606641220,-400.0,0.000228,8]
[313717849,1707606641229,-156.21,0.00022828,2]
[313717850,1707606641239,-181.65168031,0.00022849,2]
[313717851,1707606641248,-197.76,0.00022852,2]
[313717852,1707606641257,-156.21,0.00022895,2]
[313717853,1707606641266,-967.5463,0.00022899,2]
[313717854,1707606641276,-6262.6858,0.00022899,2]
[313717855,1707606641285,-11983.74624637,0.000229,2]
[313717856,1707606641294,-313.8993,0.000229,2]
[313717857,1707606641303,-172.70999681,0.000229,2]
[313717858,1707606641313,-181.65168031,0.000229,2]
[313717859,1707606641322,-8951.17656119,0.000229,2]
[313717860,1707606641332,-819.83026137,0.000229,2]
[313717861,1707606641341,-400.0,0.000229,8]
[313717862,1707606641350,-156.21,0.00022962,2]
[313717863,1707606641359,-216.48498561,0.00022974,2]
[313717864,1707606641369,-157.0211,0.00022996,3]
[313717865,1707606641378,-157.0211,0.00022996,3]
[313717866,1707606641387,-157.0211,0.00022996,3]
[313717867,1707606641396,-157.0211,0.00022996,3]
[313717868,1707606641406,-157.0211,0.00022996,3]
[313717869,1707606641415,-157.0211,0.00022996,3]
[313717870,1707606641424,-157.0211,0.00022996,3]
[313717871,1707606641434,-157.0211,0.00022996,3]
[313717872,1707606641443,-157.0211,0.00022996,3]
[313717873,1707606641452,-157.0211,0.00022996,3]
[313717874,1707606641461,-157.0211,0.00022996,3]
[313717875,1707606641471,-157.0211,0.00022996,3]
[313717876,1707606641480,-157.0211,0.00022996,3]
[313717877,1707606641490,-164.0,0.00022997,2]
[313717878,1707606641499,-200.0,0.00022997,2]
[313717879,1707606641509,-180.0,0.00022997,2]
[313717880,1707606641518,-701.17640109,0.00022997,2]
[313717881,1707606641527,-2641.49593456,0.00022997,2]
[313717882,1707606641653,-2117.3,0.00022997,2]
[313717883,1707606641964,-313.8993738,0.00022997,2]
[313717894,1707606643377,-1238.02667059,0.00022997,2]
[313717895,1707606643488,-158.15514632,0.00022997,2]
[313717896,1707606643498,-155.0,0.00022997,2]
[313717897,1707606643507,-1261.97354369,0.00022997,2]
[313717898,1707606643517,-1564.90854996,0.00022997,2]
[313717899,1707606643526,-7995.9405131,0.00022997,2]
[313717901,1707606643690,-24405.45783057,0.00022997,2]
[313717902,1707606643700,-200.17112537,0.00022997,2]
[313717905,1707606643709,-2350.79417917,0.00022997,2]
[313717906,1707606643719,-155.0,0.00022997,2]
[313717907,1707606643728,-155.0,0.00022997,2]
[313717908,1707606643737,-318.98310782,0.00022997,2]
[313717909,1707606643746,-264.99913733,0.00022997,2]
[313717910,1707606643755,-155.0,0.00022997,2]
[313717911,1707606643765,-221.22226679,0.00022997,2]
[313717912,1707606643774,-172.36061,0.00022997,2]
[313717913,1707606643783,-311.58314941,0.00022997,2]
[313717914,1707606643792,-356.12782082,0.00022997,2]
[313717915,1707606643801,-155.0,0.00022997,2]
[313717916,1707606643810,-162.76541641,0.00022997,2]
[313717917,1707606643819,-155.67068699,0.00022997,2]
[313717918,1707606643828,-155.0,0.00022997,2]
[313717919,1707606643838,-155.31034071,0.00022997,2]
[313717920,1707606643848,-514.10298994,0.00022997,2]
[313717921,1707606643857,-853.64959829,0.00022997,2]
[313717922,1707606643866,-261.40959771,0.00022997,2]
[313717923,1707606643875,-828.16237245,0.00022997,2]
[313717924,1707606643924,-1302.51066034,0.00022997,2]
[313717952,1707606646498,-399.67000005,0.00022997,2]
[313717953,1707606646510,-593.89436748,0.00022997,2]
[313717954,1707606646519,-204.00769385,0.00022997,2]
[313717955,1707606646528,-934.63505046,0.00022997,2]
[313717956,1707606646538,-155.0,0.00022997,2]
[313717957,1707606646547,-155.0,0.00022997,2]
[313717958,1707606646556,-365.78086249,0.00022997,2]
[313717959,1707606646566,-980.14420531,0.00022997,2]
[313717960,1707606646574,-212.68880265,0.00022997,2]
[313717961,1707606646584,-234.26210029,0.00022997,2]
[313717962,1707606646593,-155.27862059,0.00022997,2]
[313717963,1707606646602,-195.62530526,0.00022997,2]
[313717964,1707606646612,-1189.18522081,0.00022997,2]
[313717965,1707606646621,-339.14329699,0.00022997,2]
[313717966,1707606646630,-1380.10498176,0.00022997,2]
[313717967,1707606646640,-161.40459258,0.00022997,2]
[313717968,1707606646649,-266.65693732,0.00022997,2]
[313717969,1707606646658,-162.9349551,0.00022997,2]
[313717970,1707606646669,-197.83222276,0.00022997,2]
[313717971,1707606646682,-264.58691769,0.00022997,2]
[313717972,1707606646691,-424.31374738,0.00022997,2]
[313717973,1707606646701,-166.32075875,0.00022998,2]
[313717974,1707606646711,-5077.49863878,0.00022998,2]
[313717977,1707606646724,-640.77986146,0.00022998,2]
[313717978,1707606646740,-1017.46274544,0.00022998,2]
[313717979,1707606646752,-535.5599681,0.00022998,2]
[313717980,1707606646764,-729.84447546,0.00022998,2]
[313717981,1707606647165,-578.27941501,0.00022998,2]
[313717982,1707606647177,-1995.99534826,0.00022998,2]
[313717983,1707606647186,-3759.15492352,0.00022998,5]
[313717984,1707606692127,250.0,0.00021996,2]
[313717985,1707606751047,529.8021149,0.0002118,7]
[313717986,1707606753395,197.76,0.0002186,2]
[313717987,1707606813320,354.8432,0.00021923,2]
[313717988,1707606887155,403.41,0.00019665,2]
[313717989,1707606887301,403.41,0.00021929,2]
[313717990,1707606890889,156.21,0.00021745,2]
[313717991,1707607033132,1000.0,0.00021521,2]
[313717992,1707607064551,457.46,0.00021521,2]
[313717993,1707607110482,-4200.0,0.00022182,2]
[313717994,1707607380851,363.06,0.00019447,2]
[313717995,1707607381034,363.06,0.00021711,2]
[313717996,1707607477377,1646.75,0.00021299,2]
[313717997,1707607552083,200.0,0.00021391,2]
[313717998,1707607560084,381.21,0.00021391,2]
[313717999,1707607583373,224.04406869,0.0002196,2]
[313718003,1707607628382,300.0,0.00021968,2]
[313718007,1707607644691,250.0,0.00021918,2]
[313718016,1707607673616,167.07,0.0002181,2]
[313718017,1707607696031,197.76,0.00021292,2]
[313718021,1707607728732,160.4817363,0.00021952,2]
[313718035,1707607766442,92871.1884,0.00021997,2]
[313718040,1707607783865,267.51538496,0.00021952,2]
[313718041,1707607803884,267.51538496,0.00021952,2]
[313718044,1707607823869,267.51538496,0.00021952,2]
[313718045,1707607823969,384.99,0.00019475,2]
[313718046,1707607824273,384.99,0.00021739,2]
[313718055,1707607831523,-272.23636461,0.00022044,2]
[313718056,1707607831532,-221.51013874,0.00022045,2]
[313718057,1707607831542,-1741.36448318,0.00022045,2]
[313718058,1707607831577,-513.96144583,0.00022045,2]
[313718059,1707607831589,-20348.6544802,0.00022045,2]
[313718060,1707607831601,-437.93269508,0.00022045,2]
[313718061,1707607831614,-970.5346668,0.00022045,2]
[313718062,1707607831625,-450.52487924,0.00022045,2]
[313718063,1707607831635,-141.00775888,0.00022045,2]
[313718064,1707607831693,-215.18486845,0.00022045,2]
[313718065,1707607831706,-261.48482609,0.00022046,2]
[313718066,1707607831716,-334.38700159,0.00022046,2]
[313718067,1707607831729,-403.9,0.00022046,2]
[313718068,1707607831741,-948.21495962,0.00022046,2]
[313718069,1707607831758,-2580.34959903,0.00022046,2]
[313718070,1707607831767,-336.0,0.00022046,2]
[313718071,1707607831778,-300.0,0.00022046,2]
[313718072,1707607831787,-150.0,0.00022046,2]
[313718073,1707607831797,-43210.38197149,0.00022046,2]
[313718074,1707607831807,-1730.04543917,0.00022047,2]
[313718075,1707607837626,-323.0012525,0.00022047,2]
[313718076,1707607837637,-511.53790612,0.00022047,2]
[313718077,1707607837649,-2390.12807225,0.00022047,2]
[313718078,1707607837992,-824.51488571,0.00022047,2]
[313718079,1707607838089,-1895.95222443,0.00022047,2]
[313718080,1707607838158,-146.70618785,0.00022047,2]
[313718083,1707607838369,-150.9385784,0.00022074,2]
[313718085,1707607838391,-150.9385784,0.00022074,2]
[313718087,1707607838400,-150.9385784,0.00022075,2]
[313718089,1707607838410,-4559.28,0.00022075,2]
[313718091,1707607838420,-499.99,0.00022075,2]
[313718093,1707607838430,-472.5176,0.00022077,2]
[313718095,1707607838440,-55864.6824,0.00022097,2]
[313718097,1707607838449,-782.5291,0.00022195,2]
[313718099,1707607838459,-2270.9025,0.00022195,2]
[313718101,1707607838468,-637.63223231,0.00022197,2]
[313718103,1707607838477,-5818.3705,0.00022197,2]
[313718105,1707607838486,-920.53379961,0.00022199,2]
[313718107,1707607838495,-170.02287292,0.000222,2]
[313718109,1707607838505,-4938.07,0.000222,2]
[313718111,1707607838515,-275.65673244,0.0002229,2]
[313718113,1707607838524,-200.17112537,0.00022295,2]
[313718115,1707607838533,-311.58314941,0.00022295,2]
[313718117,1707607838542,-155.0,0.00022295,2]
[313718119,1707607838552,-264.99913733,0.00022295,2]
[313718121,1707607838561,-155.0,0.00022295,2]
[313718124,1707607838570,-155.0,0.00022295,2]
[313718126,1707607838580,-828.16237245,0.00022295,2]
[313718127,1707607838589,-514.10298994,0.00022295,2]
[313718129,1707607838598,-155.0,0.00022295,2]
[313718131,1707607838607,-155.31034071,0.00022295,2]
[313718133,1707607838616,-853.64959829,0.00022295,2]
[313718135,1707607838625,-162.76541641,0.00022295,2]
[313718138,1707607838634,-155.67068699,0.00022295,2]
[313718140,1707607838643,-172.36061,0.00022295,2]
[313718142,1707607838653,-4989.48561903,0.00022295,2]
[313718144,1707607838663,-155.0,0.00022296,2]
[313718146,1707607838672,-318.98310782,0.00022296,2]
[313718148,1707607838682,-165.57983905,0.00022297,3]
[313718149,1707607838691,-13766.18989283,0.00022297,2]
[313718150,1707607839101,-25644.88876318,0.00022297,2]
[313718151,1707607839113,-35102.37400286,0.00022297,2]
[313718152,1707607839125,-255255.89223285,0.00022297,2]
[313718153,1707607839136,-499.07023762,0.00022297,2]
[313718154,1707607839148,-1650.87337658,0.00022297,2]
[313718155,1707607839160,-328.92787868,0.00022297,2]
[313718156,1707607840152,-917.97752363,0.00022297,2]
[313718165,1707607842692,-320.43265388,0.00022297,2]
[313718166,1707607842708,-425.61735782,0.00022297,2]
[313718167,1707607842739,-3066.06605837,0.00022297,2]
[313718168,1707607842769,-610.74002098,0.00022297,2]
[313718169,1707607842781,-944.85000106,0.00022297,2]
[313718170,1707607842825,-998.74622481,0.00022297,2]
[313718175,1707607845612,-4781.1915,0.00022097,2]
[313718176,1707607845777,-820.61629476,0.00022097,2]
[313718177,1707607860345,267.51538496,0.00021952,2]
[313718178,1707607862221,157.58046542,0.00021874,2]
[313718179,1707607879874,267.51538496,0.00021952,2]
[313718180,1707607902965,92871.1884,0.00021997,2]
[313718181,1707607941507,1349.19272133,0.00021997,2]
[313718182,1707607965893,840.0,0.0002129,2]
[313718183,1707607991341,353.98,0.00022,2]
[313718184,1707607999061,2885.6139,0.00021997,2]
[313718185,1707608015896,849.7003,0.00021997,2]
[313718186,1707608039774,387892.01628,0.000219,2]
[313718187,1707608058970,20255.7226,0.00021997,2]
[313718188,1707608072072,545.9016,0.00021997,2]
[313718189,1707608074040,317.67,0.000212,2]
[313718190,1707608082569,375.92069826,0.0002194,2]
[313718191,1707608087415,375.92069807,0.00021991,2]
[313718192,1707608098701,469147.7555,0.000219,2]
[313718193,1707608102852,2500.0,0.00021997,2]
[313718194,1707608114425,195.68953098,0.00021997,2]
[313718195,1707608120861,16361.2903,0.00021997,2]
[313718196,1707608132047,1180.54363119,0.00021952,2]
[313718197,1707608138821,1146.9879,0.00021997,2]
[313718199,1707608178525,836.1203,0.00021951,2]
[313718200,1707608282988,261.48482609,0.0002201,2]
[313718201,1707608284951,155.0,0.0002201,2]
[313718202,1707608285043,1861.33867425,0.0002201,2]
[313718203,1707608288416,175.05439154,0.0002201,2]
[313718204,1707608289289,215.82244978,0.0002201,2]
[313718205,1707608291198,358.39820342,0.0002201,2]
[313718206,1707608292113,250.02461482,0.0002201,2]
[313718207,1707608292610,1046.76795033,0.0002201,2]
[313718208,1707608296494,356.19262733,0.0002201,2]
[313718209,1707608299011,246.12271657,0.0002201,2]
[313718210,1707608301297,12910.97756599,0.00021951,2]
[313718211,1707608301321,1766.33093401,0.00021951,2]
[313718212,1707608323227,1032.9756773,0.00021952,2]
[313718213,1707608323930,346.49,0.0001924,2]
[313718214,1707608324147,346.49,0.00021504,2]
[313718215,1707608374989,119948.0,0.00021974,2]
[313718216,1707608385935,4266.85156024,0.00022,2]
[313718217,1707608388594,231.33733691,0.00022,2]
[313718218,1707608389255,155.0,0.00022,2]
[313718219,1707608390048,155.0,0.00022,2]
[313718220,1707608391103,155.0,0.00021951,2]
[313718221,1707608391963,264.72719193,0.00022,2]
[313718222,1707608396114,303.69195406,0.00022,2]
[313718223,1707608401573,545.60787542,0.00022,2]
[313718224,1707608405252,155.54410468,0.00021939,2]
[313718225,1707608417328,4648.87091096,0.00022,2]
[313718226,1707608423211,1055.5078067,0.00022,2]
[313718227,1707608427864,2633.88806309,0.00022,2]